[Event "34th MPL National U12 Chess-ch 2022"]
[Site "Mysore"]
[Date "2022.04.12"]
[Round "8.5"]
[White "Gandhi, Aakash"]
[Black "Sidharth Sreekumar"]
[Result "1-0"]
[ECO "A57"]
[WhiteElo "1698"]
[BlackElo "1418"]
[Annotator "NA RC"]
[PlyCount "69"]
[EventDate "2022.04.09"]
[EventCountry "IND"]
[SourceTitle "playchess.com"]
[Source "ChessBase"]
[SourceQuality "1"]
[TimeControl "5400+30"]

1. d4 {[%emt 0:00:37]} Nf6 {[%emt 0:00:07]} 2. c4 {[%emt 0:00:14]} c5 {[%emt 0:00:36]} 3. d5 {[%emt 0:00:52]} a6 {[%emt 0:00:04]} 4. e3 {[%emt 0:00:53]} b5 {[%emt 0:00:37]} 5. cxb5 {[%emt 0:00:24]} axb5 {[%emt 0:00:09]} 6. Bxb5 {[%emt 0:00:21]} Qa5+ {[%emt 0:00:19]} 7. Nc3 {[%emt 0:00:10]} Ba6 {[%emt 0:03:38]} 8. Bxa6 {[%emt 0:01:03]} Nxa6 {[%emt 0:00:46]} 9. Nge2 {[%emt 0:02:14]} d6 {[%emt 0:00:13]} 10. O-O {[%emt 0:00:36]} g6 {[%emt 0:00:02]} 11. Bd2 {[%emt 0:02:16]} Bg7 {[%emt 0:03:03]} 12. Ne4 {[%emt 0:03:02]} Nb4 {[%emt 0:02:46]} 13. Bc3 {[%emt 0:03:28]} Nxe4 {[%emt 0:02:17]} 14. Bxg7 {[%emt 0:01:40]} Rg8 {[%emt 0:00:07]} 15. Bc3 {[%emt 0:00:09]} Nxc3 {[%emt 0:08:23]} 16. Nxc3 {[%emt 0:01:06]} Qa6 {[%emt 0:01:16]} 17. Qg4 {[%emt 0:08:13]} Kf8 {[%emt 0:03:47]} 18. Qh4 {[%emt 0:00:39]} Qb7 {[%emt 0:03:50]} 19. Qe4 {[%emt 0:08:12]} Kg7 {[%emt 0:03:27]} 20. h4 {[%emt 1:04:21]} h5 {[%emt 0:08:42]} 21. a3 {[%emt 0:00:00]} Na6 {[%emt 0:01:09]} 22. Rab1 {[%emt 0:00:00]} Rgc8 {[%emt 0:00:35]} 23. f4 {[%emt 0:00:00]} f5 {[%emt 0:01:29]} 24. Qf3 {[%emt 0:00:00]} c4 {[%emt 0:02:24]} 25. e4 {[%emt 0:00:00]} Qd7 {[%emt 0:01:20]} 26. Rbe1 {[%emt 0:00:00]} Rc7 {[%emt 0:00:40]} 27. exf5 {[%emt 0:00:00]} Qxf5 {[%emt 0:01:52]} 28. Nb5 {[%emt 0:00:00]} Rb7 {[%emt 0:05:13]} 29. Nd4 {[%emt 0:00:00]} Qf6 {[%emt 0:01:44]} 30. Ne6+ {[%emt 0:00:00]} Kh6 {[%emt 0:00:47]} 31. f5 {[%emt 0:00:00]} gxf5 {[%emt 0:01:12]} 32. Qf4+ {[%emt 0:00:00]} Kg6 {[%emt 0:00:05]} 33. Qg3+ {[%emt 0:00:00]} Kh6 {[%emt 0:00:15]} 34. Rxf5 {[%emt 0:00:00]} Qg6 {[%emt 0:01:44]} 35. Rxh5+ {[%emt 0:07:30]} 1-0

[Event "34th MPL National U12 Chess-ch 2022"]
[Site "Mysore"]
[Date "2022.04.12"]
[Round "8.6"]
[White "Haridev S"]
[Black "Sharnarthi Viresh"]
[Result "1-0"]
[ECO "A31"]
[WhiteElo "1458"]
[BlackElo "1549"]
[Annotator "NA RC"]
[PlyCount "139"]
[EventDate "2022.04.09"]
[EventCountry "IND"]
[SourceTitle "playchess.com"]
[Source "ChessBase"]
[SourceQuality "1"]
[TimeControl "5400+30"]

1. e4 {[%emt 0:00:20]} c5 {[%emt 0:00:05]} 2. Nf3 {[%emt 0:00:10]} d6 {[%emt 0:00:06]} 3. d4 {[%emt 0:00:08]} cxd4 {[%emt 0:00:04]} 4. Nxd4 {[%emt 0:00:08]} Nf6 {[%emt 0:00:03]} 5. f3 {[%emt 0:00:08]} a6 {[%emt 0:00:04]} 6. c4 {[%emt 0:00:12]} e6 {[%emt 0:00:03]} 7. Nc3 {[%emt 0:00:08]} Be7 {[%emt 0:00:06]} 8. Be3 {[%emt 0:00:43]} O-O {[%emt 0:00:09]} 9. Be2 {[%emt 0:00:05]} b6 {[%emt 0:00:14]} 10. O-O {[%emt 0:02:15]} Bb7 {[%emt 0:00:27]} 11. Rc1 {[%emt 0:03:58]} Nbd7 {[%emt 0:01:19]} 12. Qb3 {[%emt 0:10:24]} Rc8 {[%emt 0:04:53]} 13. Rfd1 {[%emt 0:03:28]} Re8 {[%emt 0:02:25]} 14. a3 {[%emt 0:09:19]} Qc7 {[%emt 0:00:46]} 15. Na4 {[%emt 0:07:01]} Bc6 {[%emt 0:05:50]} 16. Nxc6 {[%emt 0:01:29]} Qxc6 {[%emt 0:00:07]} 17. Nc3 {[%emt 0:02:00]} Bf8 {[%emt 0:04:23]} 18. g3 {[%emt 0:12:10]} Qb7 {[%emt 0:05:46]} 19. Qa2 {[%emt 0:07:30]} Ne5 {[%emt 0:02:21]} 20. h3 {[%emt 0:01:39]} b5 {[%emt 0:08:19]} 21. cxb5 {[%emt 0:02:50]} axb5 {[%emt 0:00:36]} 22. Qb3 {[%emt 0:05:28]} Rb8 {[%emt 0:00:53]} 23. Na2 {[%emt 0:06:56]} Ng6 {[%emt 0:26:28]} 24. Nb4 {[%emt 0:05:16]} d5 {[%emt 0:00:44]} 25. exd5 {[%emt 0:00:56]} exd5 {[%emt 0:00:39]} 26. Nc6 {[%emt 0:03:58]} Rbc8 {[%emt 0:00:31]} 27. Nd4 {[%emt 0:02:49]} Qb8 {[%emt 0:04:29]} 28. Bf2 {[%emt 0:02:39]} Bc5 {[%emt 0:03:47]} 29. Rxc5 {[%emt 0:09:07]} Rxc5 {[%emt 0:00:05]} 30. Bxb5 {[%emt 0:00:41]} Rec8 {[%emt 0:03:16]} 31. a4 {[%emt 0:00:51]} Rc1 {[%emt 0:01:14]} 32. Kg2 {[%emt 0:00:32]} Nh5 {[%emt 0:00:42]} 33. Rxc1 {[%emt 0:01:05]} Rxc1 {[%emt 0:00:07]} 34. f4 {[%emt 0:00:16]} Qc8 {[%emt 0:10:12]} 35. Ne2 {[%emt 0:00:45]} Rc2 {[%emt 0:07:03]} 36. Bd3 {[%emt 0:00:01]} Rc7 {[%emt 0:00:29]} 37. Qxd5 {[%emt 0:00:37]} Rd7 {[%emt 0:00:27]} 38. Qc4 {[%emt 0:00:53]} Qb7+ {[%emt 0:00:54]} 39. Be4 {[%emt 0:00:32]} Qb8 {[%emt 0:03:32]} 40. b4 {[%emt 0:00:30]} Nf6 {[%emt 0:00:52]} 41. Bf3 {[%emt 0:00:17]} Rc7 {[%emt 0:00:22]} 42. Qb3 {[%emt 0:00:26]} h5 {[%emt 0:04:09]} 43. b5 {[%emt 0:00:32]} Rd7 {[%emt 0:01:39]} 44. b6 {[%emt 0:00:19]} h4 {[%emt 0:00:06]} 45. b7 {[%emt 0:00:19]} hxg3 {[%emt 0:00:15]} 46. Ba7 {[%emt 0:00:35]} Rxb7 {[%emt 0:00:12]} 47. Qxb7 {[%emt 0:00:23]} Nxf4+ {[%emt 0:00:14]} 48. Nxf4 {[%emt 0:00:05]} Qxf4 {[%emt 0:00:05]} 49. Qb8+ {[%emt 0:00:05]} Qxb8 {[%emt 0:00:03]} 50. Bxb8 {[%emt 0:00:05]} Nd7 {[%emt 0:00:06]} 51. Bxg3 {[%emt 0:00:06]} Nc5 {[%emt 0:00:34]} 52. a5 {[%emt 0:00:05]} Na6 {[%emt 0:00:17]} 53. Bd6 {[%emt 0:00:05]} f6 {[%emt 0:00:01]} 54. Bd5+ {[%emt 0:00:07]} Kh7 {[%emt 0:00:02]} 55. Bc4 {[%emt 0:00:01]} f5 {[%emt 0:00:02]} 56. Bxa6 {[%emt 0:00:11]} f4 {[%emt 0:00:02]} 57. Bxf4 {[%emt 0:00:06]} g5 {[%emt 0:00:04]} 58. Bxg5 {[%emt 0:00:12]} Kg6 {[%emt 0:00:01]} 59. h4 {[%emt 0:00:07]} Kh5 {[%emt 0:00:02]} 60. Kg3 {[%emt 0:00:10]} Kg6 {[%emt 0:00:10]} 61. Bc4 {[%emt 0:00:06]} Kg7 {[%emt 0:00:02]} 62. a6 {[%emt 0:00:14]} Kh7 {[%emt 0:00:10]} 63. a7 {[%emt 0:00:04]} Kg7 {[%emt 0:00:05]} 64. Bf1 {[%emt 0:00:05]} Kg6 {[%emt 0:00:04]} 65. a8=Q {[%emt 0:00:09]} Kg7 {[%emt 0:00:12]} 66. Qe8 {[%emt 0:00:09]} Kh7 {[%emt 0:00:03]} 67. Bd3+ {[%emt 0:00:08]} Kg7 {[%emt 0:00:04]} 68. Qe7+ {[%emt 0:00:13]} Kg8 {[%emt 0:00:03]} 69. Bh7+ {[%emt 0:00:04]} Kh8 {[%emt 0:00:03]} 70. Bf6# {[%emt 0:00:02]} 1-0

[Event "34th MPL National U12 Chess-ch 2022"]
[Site "Mysore"]
[Date "2022.04.13"]
[Round "9.1"]
[White "Goutham Krishna H"]
[Black "Vaz, Ethan"]
[Result "1-0"]
[ECO "D36"]
[WhiteElo "1541"]
[BlackElo "1384"]
[Annotator "NA RC"]
[PlyCount "97"]
[EventDate "2022.04.09"]
[EventCountry "IND"]
[SourceTitle "playchess.com"]
[Source "ChessBase"]
[SourceQuality "1"]
[TimeControl "5400+30"]

1. Nf3 {[%emt 0:00:04]} d5 {[%emt 0:00:15]} 2. d4 {[%emt 0:00:26]} Nf6 {[%emt 0:00:16]} 3. c4 {[%emt 0:00:10]} e6 {[%emt 0:00:08]} 4. Nc3 {[%emt 0:00:09]} c6 {[%emt 0:00:35]} 5. cxd5 {[%emt 0:00:06]} exd5 {[%emt 0:00:11]} 6. Bg5 {[%emt 0:00:04]} Nbd7 {[%emt 0:01:28]} 7. e3 {[%emt 0:00:17]} h6 {[%emt 0:01:05]} 8. Bh4 {[%emt 0:00:04]} Be7 {[%emt 0:00:57]} 9. Bd3 {[%emt 0:00:12]} O-O {[%emt 0:02:17]} 10. O-O {[%emt 0:00:10]} Re8 {[%emt 0:00:52]} 11. Qc2 {[%emt 0:00:38]} b6 {[%emt 0:09:03]} 12. a3 {[%emt 0:03:50]} Bb7 {[%emt 0:12:27]} 13. b4 {[%emt 0:00:21]} Rc8 {[%emt 0:12:41]} 14. Rab1 {[%emt 0:01:27]} a5 {[%emt 0:14:15]} 15. bxa5 {[%emt 0:03:40]} b5 {[%emt 0:02:20]} 16. a4 {[%emt 0:00:31]} Qxa5 {[%emt 0:02:51]} 17. Bf5 {[%emt 0:03:08]} b4 {[%emt 0:09:28]} 18. Ne5 {[%emt 0:10:32]} Ba6 {[%emt 0:06:29]} 19. Ne2 {[%emt 0:05:37]} Rc7 {[%emt 0:05:35]} 20. Bd3 {[%emt 0:21:20]} Bxd3 {[%emt 0:04:08]} 21. Nxd3 {[%emt 0:00:10]} Rec8 {[%emt 0:02:16]} 22. Qb3 {[%emt 0:01:57]} Ra8 {[%emt 0:01:40]} 23. Ra1 {[%emt 0:00:25]} Nb6 {[%emt 0:01:05]} 24. Bxf6 {[%emt 0:00:29]} Bxf6 {[%emt 0:01:41]} 25. Nxb4 {[%emt 0:01:34]} Nc4 {[%emt 0:00:48]} 26. Qc3 {[%emt 0:00:12]} Rb8 {[%emt 0:01:56]} 27. Nd3 {[%emt 0:00:23]} Qxc3 {[%emt 0:00:37]} 28. Nxc3 {[%emt 0:00:03]} Rb3 {[%emt 0:00:30]} 29. Rfc1 {[%emt 0:00:02]} Be7 {[%emt 0:00:36]} 30. g4 {[%emt 0:06:28]} Bb4 {[%emt 0:02:06]} 31. Nxb4 {[%emt 0:00:59]} Rxb4 {[%emt 0:00:02]} 32. h3 {[%emt 0:03:30]} Rcb7 {[%emt 0:01:16]} 33. e4 {[%emt 0:00:33]} Nd2 {[%emt 0:01:23]} 34. exd5 {[%emt 0:00:22]} cxd5 {[%emt 0:00:09]} 35. Rd1 {[%emt 0:01:52]} Rb2 {[%emt 0:02:43]} 36. a5 {[%emt 0:01:19]} R7b3 {[%emt 0:01:30]} 37. a6 {[%emt 0:00:40]} Nf3+ {[%emt 0:00:45]} 38. Kf1 {[%emt 0:00:12]} Rxc3 {[%emt 0:00:10]} 39. a7 {[%emt 0:00:16]} Rcc2 {[%emt 0:00:06]} 40. a8=Q+ {[%emt 0:00:21]} Kh7 {[%emt 0:00:01]} 41. Kg2 {[%emt 0:00:53]} Rxf2+ {[%emt 0:00:59]} 42. Kg3 {[%emt 0:00:12]} g5 {[%emt 0:01:02]} 43. Rf1 {[%emt 0:00:33]} Rh2 {[%emt 0:00:46]} 44. Qxd5 {[%emt 0:00:31]} Rbg2+ {[%emt 0:00:30]} 45. Kxf3 {[%emt 0:00:02]} Kg7 {[%emt 0:00:31]} 46. Qe5+ {[%emt 0:00:08]} Kh7 {[%emt 0:00:11]} 47. Ra8 {[%emt 0:00:17]} f6 {[%emt 0:00:17]} 48. Qe7+ {[%emt 0:00:03]} Kg6 {[%emt 0:00:04]} 49. Rg8# {[%emt 0:00:04]} 1-0

[Event "34th MPL National U12 Chess-ch 2022"]
[Site "Mysore"]
[Date "2022.04.13"]
[Round "9.2"]
[White "Haridev S"]
[Black "Gandhi, Aakash"]
[Result "1/2-1/2"]
[ECO "C01"]
[WhiteElo "1458"]
[BlackElo "1698"]
[Annotator "NA RC"]
[PlyCount "98"]
[EventDate "2022.04.09"]
[EventCountry "IND"]
[SourceTitle "playchess.com"]
[Source "ChessBase"]
[SourceQuality "1"]
[TimeControl "5400+30"]

1. e4 {[%emt 0:00:14]} e6 {[%emt 0:01:36]} 2. d4 {[%emt 0:00:22]} d5 {[%emt 0:00:20]} 3. exd5 {[%emt 0:00:27]} exd5 {[%emt 0:00:22]} 4. Nf3 {[%emt 0:00:29]} Nf6 {[%emt 0:00:08]} 5. Bd3 {[%emt 0:00:08]} c5 {[%emt 0:00:49]} 6. dxc5 {[%emt 0:04:11]} Bxc5 {[%emt 0:01:23]} 7. O-O {[%emt 0:01:07]} O-O {[%emt 0:00:19]} 8. Bg5 {[%emt 0:01:11]} Nc6 {[%emt 0:00:53]} 9. c3 {[%emt 0:02:53]} Bg4 {[%emt 0:01:29]} 10. Nbd2 {[%emt 0:02:27]} Ne5 {[%emt 0:02:26]} 11. Be2 {[%emt 0:01:23]} Ng6 {[%emt 0:01:40]} 12. h3 {[%emt 0:01:56]} Bxf3 {[%emt 0:01:36]} 13. Bxf3 {[%emt 0:01:21]} h6 {[%emt 0:00:06]} 14. Bxf6 {[%emt 0:03:24]} Qxf6 {[%emt 0:01:27]} 15. Bxd5 {[%emt 0:08:07]} Rad8 {[%emt 0:00:53]} 16. Ne4 {[%emt 0:02:59]} Qe5 {[%emt 0:00:25]} 17. Bxf7+ {[%emt 0:06:12]} Kh8 {[%emt 0:00:28]} 18. Qg4 {[%emt 0:06:30]} Nf4 {[%emt 0:00:57]} 19. Nxc5 {[%emt 0:02:05]} Rxf7 {[%emt 0:02:01]} 20. g3 {[%emt 0:12:11]} Nxh3+ {[%emt 0:06:15]} 21. Qxh3 {[%emt 0:01:17]} Qxc5 {[%emt 0:00:04]} 22. Qg2 {[%emt 0:17:37]} Rd3 {[%emt 0:01:53]} 23. Rad1 {[%emt 0:02:12]} Rdf3 {[%emt 0:01:38]} 24. Rd2 {[%emt 0:04:11]} Kh7 {[%emt 0:01:14]} 25. Re1 {[%emt 0:03:40]} R7f6 {[%emt 0:01:44]} 26. Rde2 {[%emt 0:02:04]} Qb6 {[%emt 0:02:59]} 27. Re3 {[%emt 0:00:57]} Rxe3 {[%emt 0:05:43]} 28. Rxe3 {[%emt 0:07:14]} Qxb2 {[%emt 0:04:28]} 29. Qe4+ {[%emt 0:00:20]} Rg6 {[%emt 0:00:16]} 30. Kg2 {[%emt 0:02:58]} b5 {[%emt 0:03:06]} 31. a4 {[%emt 0:01:14]} bxa4 {[%emt 0:00:27]} 32. Qxa4 {[%emt 0:00:11]} Qb7+ {[%emt 0:00:13]} 33. Qe4 {[%emt 0:00:10]} Qxe4+ {[%emt 0:00:07]} 34. Rxe4 {[%emt 0:00:02]} Rc6 {[%emt 0:00:07]} 35. Re7 {[%emt 0:01:12]} a5 {[%emt 0:00:16]} 36. Ra7 {[%emt 0:01:48]} Rc5 {[%emt 0:00:05]} 37. c4 {[%emt 0:01:03]} Kg6 {[%emt 0:00:04]} 38. Kf3 {[%emt 0:00:07]} Kf5 {[%emt 0:00:09]} 39. Rxg7 {[%emt 0:01:30]} Rxc4 {[%emt 0:00:12]} 40. g4+ {[%emt 0:00:35]} Kf6 {[%emt 0:00:08]} 41. Rh7 {[%emt 0:00:20]} Kg6 {[%emt 0:00:07]} 42. Ra7 {[%emt 0:00:08]} a4 {[%emt 0:00:09]} 43. Ra6+ {[%emt 0:00:09]} Kg7 {[%emt 0:00:46]} 44. Kg3 {[%emt 0:00:36]} Rc3+ {[%emt 0:00:34]} 45. Kh4 {[%emt 0:01:01]} a3 {[%emt 0:00:07]} 46. g5 {[%emt 0:00:45]} hxg5+ {[%emt 0:00:45]} 47. Kxg5 {[%emt 0:00:02]} Kf7 {[%emt 0:00:07]} 48. f4 {[%emt 0:00:10]} Re3 {[%emt 1:01:29]} 49. f5 {[%emt 0:01:50]} Rc3 1/2-1/2

[Event "34th MPL National U12 Chess-ch 2022"]
[Site "Mysore"]
[Date "2022.04.13"]
[Round "9.3"]
[White "Sathvik Adiga"]
[Black "Vivaan Vijay Saraogi"]
[Result "1/2-1/2"]
[ECO "B19"]
[WhiteElo "1562"]
[BlackElo "1519"]
[Annotator "NA RC"]
[PlyCount "153"]
[EventDate "2022.04.09"]
[EventCountry "IND"]
[SourceTitle "playchess.com"]
[Source "ChessBase"]
[SourceQuality "1"]
[TimeControl "5400+30"]

1. e4 {[%emt 0:00:01]} c6 {[%emt 0:00:08]} 2. d4 {[%emt 0:00:03]} d5 {[%emt 0:00:07]} 3. Nc3 {[%emt 0:00:05]} dxe4 {[%emt 0:00:09]} 4. Nxe4 {[%emt 0:00:06]} Bf5 {[%emt 0:00:06]} 5. Ng3 {[%emt 0:00:07]} Bg6 {[%emt 0:00:07]} 6. h4 {[%emt 0:00:04]} h6 {[%emt 0:00:06]} 7. Nf3 {[%emt 0:00:11]} Nd7 {[%emt 1:33:17]} 8. h5 {[%emt 0:00:03]} Bh7 {[%emt 0:00:00]} 9. Bd3 {[%emt 0:00:06]} Bxd3 {[%emt 0:00:00]} 10. Qxd3 {[%emt 0:00:03]} Ngf6 {[%emt 0:00:00]} 11. Bd2 {[%emt 0:00:35]} e6 {[%emt 0:00:00]} 12. O-O-O {[%emt 0:00:16]} Be7 {[%emt 0:00:00]} 13. Kb1 {[%emt 0:00:47]} O-O {[%emt 0:00:00]} 14. Ne4 {[%emt 0:00:24]} Nxe4 {[%emt 0:00:00]} 15. Qxe4 {[%emt 0:00:04]} Nf6 {[%emt 0:00:00]} 16. Qe2 {[%emt 0:00:10]} Qd5 {[%emt 0:00:00]} 17. Qe5 {[%emt 0:05:38]} Rfd8 {[%emt 0:00:00]} 18. Qxd5 {[%emt 0:09:49]} Rxd5 {[%emt 0:00:00]} 19. g4 {[%emt 0:09:54]} Nxg4 {[%emt 0:00:00]} 20. Rdg1 {[%emt 0:00:06]} f5 {[%emt 0:00:00]} 21. c4 {[%emt 0:00:50]} Rd7 {[%emt 0:00:00]} 22. Be3 {[%emt 0:02:08]} Bf6 {[%emt 0:00:00]} 23. Nh2 {[%emt 0:12:33]} Nxe3 {[%emt 0:00:00]} 24. fxe3 {[%emt 0:00:58]} c5 {[%emt 0:00:00]} 25. Re1 {[%emt 0:20:34]} cxd4 {[%emt 0:00:00]} 26. e4 {[%emt 0:00:06]} Bh4 {[%emt 0:00:00]} 27. Ref1 {[%emt 0:04:53]} fxe4 {[%emt 0:00:00]} 28. Rf4 {[%emt 0:00:03]} Bf6 {[%emt 0:00:00]} 29. Rxe4 {[%emt 0:00:22]} Rc8 {[%emt 0:00:00]} 30. b3 {[%emt 0:03:34]} Kf7 {[%emt 0:00:00]} 31. Rhe1 {[%emt 0:07:44]} Rd6 {[%emt 0:00:00]} 32. Ng4 {[%emt 0:03:37]} Rc5 {[%emt 0:00:00]} 33. Ne5+ {[%emt 0:00:43]} Rxe5 {[%emt 0:00:00]} 34. Rxe5 {[%emt 0:00:03]} Bxe5 {[%emt 0:00:00]} 35. Rxe5 {[%emt 0:00:01]} Kf6 {[%emt 0:00:00]} 36. Re1 {[%emt 0:00:18]} b6 {[%emt 0:00:00]} 37. Rg1 {[%emt 0:00:09]} a5 {[%emt 0:00:00]} 38. Kc2 {[%emt 0:00:11]} Rd7 {[%emt 0:00:00]} 39. Kd3 {[%emt 0:00:08]} Kf5 {[%emt 0:00:00]} 40. Rf1+ {[%emt 0:01:30]} Kg4 {[%emt 0:00:00]} 41. Re1 {[%emt 0:00:04]} Rd6 {[%emt 0:00:00]} 42. Rg1+ {[%emt 0:00:08]} Kf4 {[%emt 0:00:00]} 43. Rxg7 {[%emt 0:22:51]} e5 {[%emt 0:00:00]} 44. Rf7+ {[%emt 0:00:00]} Kg4 {[%emt 0:00:00]} 45. Re7 {[%emt 0:00:00]} Kf5 {[%emt 0:00:00]} 46. Rf7+ {[%emt 0:00:00]} Rf6 {[%emt 0:00:00]} 47. Rg7 {[%emt 0:00:00]} Rd6 {[%emt 0:00:00]} 48. Rf7+ {[%emt 0:00:00]} Kg5 {[%emt 0:00:00]} 49. Re7 {[%emt 0:00:00]} Kxh5 {[%emt 0:00:00]} 50. Rxe5+ {[%emt 0:00:00]} Kg4 {[%emt 0:00:00]} 51. Re8 {[%emt 0:00:00]} h5 {[%emt 0:00:00]} 52. Rg8+ {[%emt 0:00:00]} Kf5 {[%emt 0:00:00]} 53. Rh8 {[%emt 0:00:00]} Kg5 {[%emt 0:00:00]} 54. Rg8+ {[%emt 0:00:00]} Rg6 {[%emt 0:00:00]} 55. Rh8 {[%emt 0:00:00]} Rh6 {[%emt 0:00:00]} 56. Rg8+ {[%emt 0:00:00]} Kf4 {[%emt 0:00:00]} 57. Rf8+ {[%emt 0:00:00]} Kg3 {[%emt 0:00:00]} 58. Rg8+ {[%emt 0:00:00]} Kf2 {[%emt 0:00:00]} 59. Rf8+ {[%emt 0:00:00]} Kg2 {[%emt 0:00:00]} 60. Rg8+ {[%emt 0:00:00]} Kh2 {[%emt 0:00:00]} 61. Kxd4 {[%emt 0:00:00]} h4 {[%emt 0:00:00]} 62. c5 {[%emt 0:00:00]} bxc5+ {[%emt 0:00:00]} 63. Kxc5 {[%emt 0:00:00]} Rh5+ {[%emt 0:00:00]} 64. Kb6 {[%emt 0:00:00]} h3 {[%emt 0:00:00]} 65. a3 {[%emt 0:00:00]} Rf5 {[%emt 0:00:00]} 66. Rg7 {[%emt 0:00:00]} Kh1 {[%emt 0:00:00]} 67. Rg6 {[%emt 0:00:00]} h2 {[%emt 0:00:00]} 68. Rg7 {[%emt 0:00:00]} Rf2 {[%emt 0:00:00]} 69. Kxa5 {[%emt 0:00:00]} Rg2 {[%emt 0:00:00]} 70. Rh7 {[%emt 0:00:00]} Rg3 {[%emt 0:00:00]} 71. b4 {[%emt 0:00:00]} Rxa3+ {[%emt 0:00:00]} 72. Kb6 {[%emt 0:00:00]} Kg2 {[%emt 0:00:00]} 73. Rxh2+ {[%emt 0:00:00]} Kxh2 {[%emt 0:00:00]} 74. b5 {[%emt 0:00:00]} Kg3 {[%emt 0:00:00]} 75. Kc7 {[%emt 0:00:00]} Rc3+ {[%emt 0:00:00]} 76. Kd7 {[%emt 0:00:28]} Rd3+ {[%emt 0:00:00]} 77. Kc7 {[%emt 0:00:12]} 1/2-1/2

[Event "34th MPL National U12 Chess-ch 2022"]
[Site "Mysore"]
[Date "2022.04.13"]
[Round "9.4"]
[White "Adharsh K"]
[Black "Adireddy Arjun"]
[Result "0-1"]
[ECO "B23"]
[WhiteElo "1444"]
[BlackElo "1796"]
[Annotator "NA RC"]
[PlyCount "94"]
[EventDate "2022.04.09"]
[EventCountry "IND"]
[SourceTitle "playchess.com"]
[Source "ChessBase"]
[SourceQuality "1"]
[TimeControl "5400+30"]

1. e4 {[%emt 0:00:02]} c5 {[%emt 0:00:12]} 2. Nc3 {[%emt 0:00:06]} a6 {[%emt 0:00:09]} 3. f4 {[%emt 0:00:06]} b5 {[%emt 0:00:04]} 4. Nf3 {[%emt 0:00:06]} Bb7 {[%emt 0:01:37]} 5. d4 {[%emt 0:00:08]} e6 {[%emt 0:01:14]} 6. Be3 {[%emt 0:16:48]} Qc7 {[%emt 0:04:08]} 7. dxc5 {[%emt 0:24:50]} Bxc5 {[%emt 0:00:35]} 8. Qd2 {[%emt 0:03:46]} d6 {[%emt 0:23:27]} 9. O-O-O {[%emt 0:01:53]} Nd7 {[%emt 0:02:27]} 10. Bxc5 {[%emt 0:05:35]} dxc5 {[%emt 0:01:46]} 11. f5 {[%emt 0:22:09]} Ngf6 {[%emt 0:11:28]} 12. fxe6 {[%emt 0:01:42]} fxe6 {[%emt 0:00:09]} 13. Ng5 {[%emt 0:04:31]} Qc6 {[%emt 0:07:53]} 14. Qd6 {[%emt 0:01:16]} Qxd6 {[%emt 0:01:32]} 15. Rxd6 {[%emt 0:00:10]} e5 {[%emt 0:01:03]} 16. Be2 {[%emt 0:05:29]} h6 {[%emt 0:09:41]} 17. Ne6 {[%emt 0:00:37]} b4 {[%emt 0:01:50]} 18. Na4 {[%emt 0:00:08]} Nxe4 {[%emt 0:08:33]} 19. Rxd7 {[%emt 0:01:17]} Kxd7 {[%emt 0:00:14]} 20. Nexc5+ {[%emt 0:00:06]} Nxc5 {[%emt 0:02:28]} 21. Nxc5+ {[%emt 0:00:06]} Kc6 {[%emt 0:00:17]} 22. Nxb7 {[%emt 0:00:11]} Kxb7 {[%emt 0:00:14]} 23. Bf3+ {[%emt 0:00:07]} Kb6 {[%emt 0:00:07]} 24. Bxa8 {[%emt 0:00:05]} Rxa8 {[%emt 0:00:04]} 25. Re1 {[%emt 0:00:26]} Re8 {[%emt 0:00:07]} 26. Kd2 {[%emt 0:00:04]} Kc5 {[%emt 0:00:25]} 27. Re4 {[%emt 0:01:13]} a5 {[%emt 0:00:35]} 28. Rg4 {[%emt 0:00:42]} g5 {[%emt 0:00:50]} 29. Re4 {[%emt 0:00:43]} Kd5 {[%emt 0:00:16]} 30. Re3 {[%emt 0:00:30]} e4 {[%emt 0:02:17]} 31. a3 {[%emt 0:02:05]} Rf8 {[%emt 0:00:12]} 32. axb4 {[%emt 0:00:35]} axb4 {[%emt 0:00:16]} 33. c3 {[%emt 0:01:13]} b3 {[%emt 0:03:49]} 34. Ke2 {[%emt 0:00:26]} Rc8 {[%emt 0:00:08]} 35. Rh3 {[%emt 0:00:13]} Ra8 {[%emt 0:01:03]} 36. Rxh6 {[%emt 0:06:27]} Ra2 {[%emt 0:00:03]} 37. Rb6 {[%emt 0:00:19]} Rxb2+ {[%emt 0:00:05]} 38. Ke3 {[%emt 0:00:14]} Kc4 {[%emt 0:05:53]} 39. g4 {[%emt 0:00:44]} Rxh2 {[%emt 0:00:20]} 40. Kxe4 {[%emt 0:00:05]} Rf2 {[%emt 0:00:06]} 41. Rc6+ {[%emt 0:00:23]} Kb5 {[%emt 0:00:02]} 42. Rc8 {[%emt 0:00:44]} b2 {[%emt 0:00:55]} 43. c4+ {[%emt 0:00:41]} Ka4 {[%emt 0:02:13]} 44. Kd4 {[%emt 0:01:09]} b1=Q {[%emt 0:00:33]} 45. Ra8+ {[%emt 0:00:10]} Kb3 {[%emt 0:00:04]} 46. Rb8+ {[%emt 0:00:10]} Kc2 {[%emt 0:00:04]} 47. Rxb1 {[%emt 0:00:06]} Kxb1 {[%emt 0:00:04]} 0-1